lending/lending_fUSD_20250121
["ID","MTS","AMOUNT","RATE_DAILY","PERIOD"]
[349789104,1737431444815,-500.0,0.00019452,2]
[349789105,1737431444824,-297.75202627,0.00019452,2]
[349789106,1737431444833,-520.91039966,0.00019452,2]
[349789107,1737431444842,-2605.56,0.00019452,2]
[349789108,1737431444851,-507.06,0.00019452,2]
[349789109,1737431444860,-500.0,0.00019452,2]
[349789110,1737431444869,-500.0,0.00019452,2]
[349789111,1737431444879,-500.0,0.00019452,2]
[349789112,1737431444888,-500.0,0.00019452,2]
[349789113,1737431444900,-500.0,0.00019452,2]
[349789114,1737431444909,-500.0,0.00019452,2]
[349789115,1737431444918,-500.0,0.00019452,2]
[349789116,1737431444927,-500.0,0.00019452,2]
[349789117,1737431444937,-500.0,0.00019452,2]
[349789118,1737431444946,-500.0,0.00019452,2]
[349789119,1737431444956,-500.0,0.00019452,2]
[349789120,1737431444966,-500.0,0.00019452,2]
[349789121,1737431444976,-500.0,0.00019452,2]
[349789122,1737431444987,-500.0,0.00019452,2]
[349789123,1737431444996,-500.0,0.00019452,2]
[349789124,1737431445005,-500.0,0.00019452,2]
[349789125,1737431445015,-500.0,0.00019452,2]
[349789126,1737431445024,-500.0,0.00019452,2]
[349789127,1737431445033,-500.0,0.00019452,2]
[349789128,1737431445041,-500.0,0.00019452,2]
[349789129,1737431445051,-500.0,0.00019452,2]
[349789130,1737431445060,-500.0,0.00019452,2]
[349789131,1737431445069,-643.06,0.00019452,2]
[349789132,1737431445078,-500.0,0.00019452,2]
[349789133,1737431445087,-500.0,0.00019452,2]
[349789134,1737431445095,-500.0,0.00019452,2]
[349789135,1737431445104,-500.0,0.00019452,2]
[349789136,1737431445114,-500.0,0.00019452,2]
[349789137,1737431445123,-500.0,0.00019452,2]
[349789138,1737431445133,-500.0,0.00019452,2]
[349789139,1737431445143,-500.0,0.00019452,2]
[349789140,1737431445152,-500.0,0.00019452,2]
[349789141,1737431445161,-804.89,0.00019452,2]
[349789142,1737431445170,-504.74722128,0.00019452,2]
[349789143,1737431445180,-500.0,0.00019452,2]
[349789144,1737431445189,-500.0,0.00019452,2]
[349789145,1737431445198,-500.0,0.00019452,2]
[349789146,1737431445207,-228.4,0.00019452,2]
[349789147,1737431445217,-500.0,0.00019452,2]
[349789148,1737431445226,-500.0,0.00019452,2]
[349789149,1737431445235,-500.0,0.00019452,2]
[349789150,1737431445245,-500.0,0.00019452,2]
[349789151,1737431445254,-500.0,0.00019452,2]
[349789152,1737431445263,-500.0,0.00019452,2]
[349789153,1737431445272,-500.0,0.00019452,2]
[349789154,1737431445281,-500.0,0.00019452,2]
[349789155,1737431445291,-500.0,0.00019452,2]
[349789156,1737431445304,-500.0,0.00019452,2]
[349789157,1737431445315,-500.0,0.00019452,2]
[349789158,1737431445325,-500.0,0.00019452,2]
[349789159,1737431445335,-500.0,0.00019452,2]
[349789160,1737431445344,-502.15942636,0.00019452,2]
[349789161,1737431445354,-500.0,0.00019452,2]
[349789162,1737431445363,-211.0678471,0.00019452,2]
[349789163,1737431445373,-500.0,0.00019452,2]
[349789164,1737431445382,-500.0,0.00019452,2]
[349789165,1737431445393,-500.0,0.00019452,2]
[349789166,1737431445402,-520.25,0.00019452,2]
[349789167,1737431445412,-500.0,0.00019452,2]
[349789168,1737431445421,-500.0,0.00019452,2]
[349789169,1737431445431,-526.32024082,0.00019452,2]
[349789170,1737431445440,-500.0,0.00019452,2]
[349789171,1737431445450,-500.0,0.00019452,2]
[349789172,1737431445459,-500.0,0.00019452,2]
[349789173,1737431445470,-500.0,0.00019452,2]
[349789174,1737431445479,-500.0,0.00019452,2]
[349789175,1737431445488,-500.0,0.00019452,2]
[349789176,1737431445497,-500.0,0.00019452,2]
[349789177,1737431445506,-997.65,0.00019452,2]
[349789178,1737431445517,-500.0,0.00019452,2]
[349789179,1737431445527,-500.0,0.00019452,2]
[349789180,1737431445661,-500.0,0.00019452,2]
[349789181,1737431445671,-500.0,0.00019452,2]
[349789182,1737431445680,-500.0,0.00019452,2]
[349789183,1737431445689,-500.0,0.00019452,2]
[349789184,1737431445698,-500.0,0.00019452,2]
[349789185,1737431445708,-500.0,0.00019452,2]
[349789187,1737431445718,-500.0,0.00019452,2]
[349789189,1737431445727,-500.0,0.00019452,2]
[349789190,1737431445736,-500.0,0.00019452,2]
[349789191,1737431445745,-500.0,0.00019452,2]
[349789192,1737431445754,-500.0,0.00019452,2]
[349789193,1737431445765,-500.0,0.00019452,2]
[349789196,1737431445774,-500.0,0.00019452,2]
[349789198,1737431445783,-840.51,0.00019452,2]
[349789200,1737431445791,-500.0,0.00019452,2]
[349789202,1737431445800,-500.0,0.00019452,2]
[349789204,1737431445809,-499.86884597,0.00019452,2]
[349789206,1737431445819,-500.0,0.00019452,2]
[349789208,1737431445829,-500.0,0.00019452,2]
[349789210,1737431445839,-500.0,0.00019452,2]
[349789212,1737431445847,-500.0,0.00019452,2]
[349789214,1737431445856,-500.0,0.00019452,2]
[349789217,1737431445866,-500.0,0.00019452,2]
[349789220,1737431445876,-529.19847714,0.00019452,2]
[349789223,1737431445885,-500.0,0.00019452,2]
[349789225,1737431445896,-603.4335323,0.00019452,2]
[349789227,1737431445905,-500.0,0.00019452,2]
[349789229,1737431445915,-500.0,0.00019452,2]
[349789230,1737431445925,-500.0,0.00019452,2]
[349789232,1737431445936,-500.0,0.00019452,2]
[349789234,1737431445946,-588.53,0.00019452,2]
[349789235,1737431445956,-500.0,0.00019452,2]
[349789237,1737431445966,-500.0,0.00019452,2]
[349789239,1737431445976,-508.63567815,0.00019452,2]
[349789241,1737431445985,-530.35871356,0.00019452,2]
[349789243,1737431445995,-500.0,0.00019452,2]
[349789245,1737431446004,-500.0,0.00019452,2]
[349789247,1737431446013,-500.0,0.00019452,2]
[349789249,1737431446023,-500.0,0.00019452,2]
[349789251,1737431446032,-500.0,0.00019452,2]
[349789252,1737431446042,-500.0,0.00019452,2]
[349789253,1737431446052,-500.0,0.00019452,2]
[349789254,1737431446061,-500.0,0.00019452,2]
[349789255,1737431446071,-500.0,0.00019452,2]
[349789257,1737431446081,-500.0,0.00019452,2]
[349789259,1737431446091,-500.0,0.00019452,2]
[349789261,1737431446101,-500.0,0.00019452,2]
[349789263,1737431446111,-512.07397301,0.00019452,2]
[349789265,1737431446121,-500.0,0.00019452,2]
[349789266,1737431446130,-500.0,0.00019452,2]
[349789267,1737431446139,-500.0,0.00019452,2]
[349789268,1737431446151,-500.0,0.00019452,2]
[349789269,1737431446160,-500.0,0.00019452,2]
[349789270,1737431446170,-500.0,0.00019452,2]
[349789271,1737431446179,-310.50373551,0.00019452,2]
[349789272,1737431446188,-500.0,0.00019452,2]
[349789273,1737431446198,-500.0,0.00019452,2]
[349789274,1737431446207,-500.0,0.00019452,2]
[349789275,1737431446217,-177.87754488,0.00019452,2]
[349789276,1737431446227,-500.0,0.00019452,2]
[349789277,1737431446237,-500.0,0.00019452,2]
[349789278,1737431446247,-508.60894906,0.00019452,2]
[349789279,1737431446257,-500.0,0.00019452,2]
[349789280,1737431446267,-500.0,0.00019452,2]
[349789281,1737431446277,-500.0,0.00019452,2]
[349789282,1737431446287,-500.0,0.00019452,2]
[349789283,1737431446296,-500.0,0.00019452,2]
[349789284,1737431446306,-500.0,0.00019452,2]
[349789285,1737431446316,-500.0,0.00019452,2]
[349789286,1737431446327,-500.0,0.00019452,2]
[349789287,1737431446336,-500.0,0.00019452,2]
[349789288,1737431446346,-500.0,0.00019452,2]
[349789289,1737431446355,-500.0,0.00019452,2]
[349789290,1737431446365,-500.0,0.00019452,2]
[349789291,1737431446376,-503.86749801,0.00019452,2]
[349789292,1737431446387,-500.0,0.00019452,2]
[349789293,1737431446398,-997.23,0.00019452,2]
[349789294,1737431446408,-500.0,0.00019452,2]
[349789295,1737431446418,-500.0,0.00019452,2]
[349789296,1737431446427,-500.0,0.00019452,2]
[349789297,1737431446437,-500.0,0.00019452,2]
[349789298,1737431446447,-500.0,0.00019452,2]
[349789299,1737431446457,-500.0,0.00019452,2]
[349789300,1737431446468,-500.0,0.00019452,2]
[349789301,1737431446478,-701.25,0.00019452,2]
[349789302,1737431446488,-500.0,0.00019452,2]
[349789303,1737431446497,-500.0,0.00019452,2]
[349789304,1737431446507,-500.0,0.00019452,2]
[349789305,1737431446517,-500.0,0.00019452,2]
[349789306,1737431446527,-500.0,0.00019452,2]
[349789307,1737431446536,-1414.07,0.00019452,2]
[349789308,1737431446546,-500.0,0.00019452,2]
[349789310,1737431446556,-500.0,0.00019452,2]
[349789312,1737431446566,-157.934379,0.00019452,2]
[349789314,1737431446575,-506.69552258,0.00019452,2]
[349789316,1737431446585,-500.0,0.00019452,2]
[349789317,1737431446594,-500.0,0.00019452,2]
[349789318,1737431446603,-500.0,0.00019452,2]
[349789319,1737431446612,-1957.94,0.00019452,2]
[349789320,1737431446622,-500.0,0.00019452,2]
[349789321,1737431446632,-500.0,0.00019452,2]
[349789322,1737431446640,-500.0,0.00019452,2]
[349789323,1737431446651,-500.0,0.00019452,2]
[349789324,1737431446660,-500.0,0.00019452,2]
[349789325,1737431446669,-500.0,0.00019452,2]
[349789326,1737431446679,-508.77761903,0.00019452,2]
[349789327,1737431446688,-324.94102197,0.00019452,2]
[349789328,1737431446697,-500.0,0.00019452,2]
[349789329,1737431446707,-500.0,0.00019452,2]
[349789330,1737431446716,-500.0,0.00019452,2]
[349789331,1737431446725,-500.0,0.00019452,2]
[349789332,1737431446734,-190.983926,0.00019452,2]
[349789333,1737431446743,-500.0,0.00019452,2]
[349789334,1737431446753,-1072.38,0.00019452,2]
[349789335,1737431446762,-505.12275859,0.00019452,2]
[349789336,1737431446771,-500.0,0.00019452,2]
[349789337,1737431446780,-1057.57,0.00019452,2]
[349789338,1737431446789,-500.0,0.00019452,2]
[349789339,1737431446799,-500.0,0.00019452,2]
[349789340,1737431446808,-500.0,0.00019452,2]
[349789341,1737431446817,-201.67660733,0.00019452,2]
[349789342,1737431446826,-1040.36,0.00019452,2]
[349789343,1737431446835,-616.87,0.00019452,2]
[349789344,1737431446844,-507.61805506,0.00019452,2]
[349789345,1737431446854,-500.0,0.00019452,2]
[349789346,1737431446863,-500.0,0.00019452,2]
[349789347,1737431446873,-500.0,0.00019452,2]
[349789348,1737431446882,-514.60879194,0.00019452,2]
[349789349,1737431446892,-517.08393866,0.00019452,2]
[349789350,1737431446902,-514.09896605,0.00019452,2]
[349789351,1737431446911,-2085.05,0.00019452,2]
[349789352,1737431446920,-501.63584094,0.00019452,2]
[349789353,1737431446930,-500.0,0.00019452,2]
[349789354,1737431446943,-1778.99,0.00019452,2]
[349789355,1737431446952,-634.1,0.00019452,2]
[349789356,1737431446963,-500.0,0.00019452,2]
[349789357,1737431446973,-500.0,0.00019452,2]
[349789358,1737431446983,-500.0,0.00019452,2]
[349789359,1737431446992,-500.0,0.00019452,2]
[349789360,1737431447001,-1286.82,0.00019452,2]
[349789361,1737431447011,-500.0,0.00019452,2]
[349789362,1737431447020,-500.0,0.00019452,2]
[349789363,1737431447030,-500.0,0.00019452,2]
[349789364,1737431447039,-1351.91,0.00019452,2]
[349789365,1737431447048,-808.1,0.00019452,2]
[349789366,1737431447058,-500.0,0.00019452,2]
[349789367,1737431447067,-500.0,0.00019452,2]
[349789368,1737431447077,-2057.31,0.00019452,2]
[349789369,1737431447087,-510.94846473,0.00019452,2]
[349789370,1737431447096,-709.92,0.00019452,2]
[349789371,1737431447106,-420.66781806,0.00019452,2]
[349789372,1737431447115,-860.56,0.00019452,2]
[349789373,1737431447124,-500.0,0.00019452,2]
[349789374,1737431447134,-500.0,0.00019452,2]
[349789375,1737431447144,-500.0,0.00019452,2]
[349789376,1737431447154,-500.0,0.00019452,2]
[349789377,1737431447163,-500.0,0.00019452,2]
[349789378,1737431447173,-500.0,0.00019452,2]
[349789379,1737431447182,-500.0,0.00019452,2]
[349789380,1737431447192,-500.0,0.00019452,2]
[349789381,1737431447201,-500.0,0.00019452,2]
[349789382,1737431447211,-500.0,0.00019452,2]
[349789383,1737431447221,-577.3,0.00019452,2]
[349789384,1737431447230,-692.77,0.00019452,2]
[349789385,1737431447240,-2706.85,0.00019452,2]
[349789386,1737431447249,-1366.24,0.00019452,2]
[349789387,1737431447258,-500.0,0.00019452,2]
[349789388,1737431447267,-641.22,0.00019452,2]
[349789389,1737431447277,-500.0,0.00019452,2]
[349789390,1737431447286,-500.0,0.00019452,2]
[349789391,1737431447296,-1745.41,0.00019452,2]
[349789392,1737431447305,-524.69485434,0.00019452,2]
[349789393,1737431447314,-565.86,0.00019452,2]
[349789394,1737431447324,-832.95,0.00019452,2]
[349789395,1737431447334,-500.0,0.00019452,2]
[349789396,1737431447344,-1196.64,0.00019452,2]
[349789397,1737431447353,-2691.18,0.00019452,2]
[349789398,1737431447363,-500.0,0.00019452,2]
[349789399,1737431447372,-925.48,0.00019452,2]
[349789400,1737431447383,-500.0,0.00019452,2]
[349789401,1737431447394,-1247.91,0.00019452,2]
[349789402,1737431447403,-500.0,0.00019452,2]
[349789403,1737431447413,-500.0,0.00019452,2]
[349789404,1737431447424,-500.0,0.00019452,2]
[349789405,1737431447434,-500.0,0.00019452,2]
[349789406,1737431447444,-1943.47,0.00019452,2]
[349789407,1737431447453,-500.0,0.00019452,2]
[349789408,1737431447463,-500.0,0.00019452,2]
[349789409,1737431447474,-1120.67,0.00019452,2]
[349789410,1737431447484,-500.0,0.00019452,2]
[349789411,1737431447494,-500.0,0.00019452,2]
[349789412,1737431447504,-886.99,0.00019452,2]
[349789413,1737431447514,-500.0,0.00019452,2]
[349789414,1737431447523,-506.13810389,0.00019452,2]
[349789415,1737431447533,-2125.42,0.00019452,2]
[349789416,1737431447542,-500.0,0.00019452,2]
[349789417,1737431447552,-500.0,0.00019452,2]
[349789418,1737431447564,-1434.09,0.00019452,2]
[349789419,1737431447576,-500.0,0.00019452,2]
[349789420,1737431447586,-1480.4,0.00019452,2]
[349789421,1737431447595,-500.0,0.00019452,2]
[349789422,1737431447605,-500.0,0.00019452,2]
[349789423,1737431447615,-511.03,0.00019452,2]
[349789424,1737431447624,-873.5,0.00019452,2]
[349789425,1737431447634,-500.0,0.00019452,2]
[349789426,1737431447645,-500.0,0.00019452,2]
[349789427,1737431447655,-500.0,0.00019452,2]
[349789428,1737431447666,-500.0,0.00019452,2]
[349789429,1737431447675,-500.0,0.00019452,2]
[349789430,1737431447685,-945.49,0.00019452,2]
[349789431,1737431447695,-500.0,0.00019452,2]
[349789432,1737431447704,-500.0,0.00019452,2]
[349789433,1737431447714,-500.0,0.00019452,2]
[349789434,1737431447723,-500.0,0.00019452,2]
[349789435,1737431447846,-509.1,0.00019452,2]
[349789436,1737431447857,-500.0,0.00019452,2]
[349789437,1737431447867,-1020.26,0.00019452,2]
[349789438,1737431447876,-1179.69,0.00019452,2]
[349789439,1737431447886,-525.3336474,0.00019452,2]
[349789440,1737431447896,-1380.46,0.00019452,2]
[349789441,1737431447905,-500.0,0.00019452,2]
[349789442,1737431447915,-618.98,0.00019452,2]
[349789443,1737431447924,-500.0,0.00019452,2]
[349789444,1737431447934,-150.26226221,0.00019452,2]
[349789445,1737431447944,-500.0,0.00019452,2]
[349789446,1737431447958,-673.28,0.00019452,2]
[349789447,1737431447967,-500.0,0.00019452,2]
[349789448,1737431447977,-500.0,0.00019452,2]
[349789449,1737431447986,-2381.85,0.00019452,2]
[349789450,1737431447995,-500.0,0.00019452,2]
[349789451,1737431448005,-1438.7,0.00019452,2]
[349789452,1737431448015,-500.0,0.00019452,2]
[349789453,1737431448024,-500.0,0.00019452,2]
[349789454,1737431448034,-500.0,0.00019452,2]
[349789455,1737431448043,-546.12,0.00019452,2]
[349789456,1737431448052,-1308.98,0.00019452,2]
[349789457,1737431448061,-500.0,0.00019452,2]
[349789458,1737431448071,-1491.71,0.00019452,2]
[349789459,1737431448081,-573.04,0.00019452,2]
[349789460,1737431448091,-500.0,0.00019452,2]
[349789461,1737431448101,-894.47,0.00019452,2]
[349789462,1737431448111,-500.0,0.00019452,2]
[349789463,1737431448121,-628.18,0.00019452,2]
[349789464,1737431448131,-500.0,0.00019452,2]
[349789465,1737431448141,-500.0,0.00019452,2]
[349789466,1737431448153,-500.0,0.00019452,2]
[349789467,1737431448164,-1534.21,0.00019452,2]
[349789468,1737431448174,-1230.77,0.00019452,2]
[349789469,1737431448184,-500.0,0.00019452,2]
[349789470,1737431448194,-505.7178281,0.00019452,2]
[349789471,1737431448204,-681.3,0.00019452,2]
[349789472,1737431448213,-500.0,0.00019452,2]
[349789473,1737431448223,-500.0,0.00019452,2]
[349789474,1737431448233,-500.0,0.00019452,2]
[349789475,1737431448242,-500.0,0.00019452,2]
[349789476,1737431448252,-500.0,0.00019452,2]
[349789477,1737431448261,-500.0,0.00019452,2]
[349789478,1737431448271,-700.3,0.00019452,2]
[349789479,1737431448280,-500.0,0.00019452,2]
[349789480,1737431448290,-500.0,0.00019452,2]
[349789481,1737431448300,-1332.19,0.00019452,2]
[349789482,1737431448309,-510.93609983,0.00019452,2]
[349789483,1737431448319,-907.81,0.00019452,2]
[349789484,1737431448328,-500.0,0.00019452,2]
[349789485,1737431448338,-500.0,0.00019452,2]
[349789486,1737431448347,-500.0,0.00019452,2]
[349789487,1737431448356,-2727.0,0.000195,5]
[349789488,1737431448366,-500.0,0.00019665,2]
[349789489,1737431448376,-500.0,0.00019665,2]
[349789490,1737431448386,-500.0,0.00019665,2]
[349789491,1737431448397,-500.0,0.00019665,2]
[349789492,1737431448407,-390.32248392,0.00019665,2]
[349789493,1737431448416,-500.0,0.00019665,2]
[349789494,1737431448427,-500.0,0.00019665,2]
[349789495,1737431448437,-500.0,0.00019665,2]
[349789496,1737431448447,-500.0,0.00019665,2]
[349789497,1737431448456,-984.38,0.00019665,2]
[349789498,1737431448466,-500.0,0.00019665,2]
[349789499,1737431448475,-205.26655479,0.00019665,2]
[349789500,1737431448486,-500.0,0.00019665,2]
[349789501,1737431448495,-500.0,0.00019665,2]
[349789502,1737431448505,-500.0,0.00019665,2]
[349789503,1737431448515,-500.0,0.00019665,2]
[349789504,1737431448525,-500.0,0.00019665,2]
[349789505,1737431448534,-500.0,0.00019665,2]
[349789506,1737431448544,-396.20485217,0.00019665,2]
[349789507,1737431448554,-500.0,0.00019665,2]
[349789508,1737431448564,-500.0,0.00019665,2]
[349789509,1737431448574,-500.0,0.00019665,2]
[349789510,1737431448583,-331.33888958,0.00019665,2]
[349789511,1737431448593,-500.0,0.00019665,2]
[349789512,1737431448603,-500.0,0.00019665,2]
[349789513,1737431448612,-500.0,0.00019665,2]
[349789514,1737431448622,-500.0,0.00019665,2]
[349789515,1737431448632,-500.0,0.00019665,2]
[349789516,1737431448641,-500.0,0.00019665,2]
[349789517,1737431448652,-500.0,0.00019665,2]
[349789518,1737431448662,-564.17607349,0.00019665,2]
[349789519,1737431448672,-500.0,0.00019665,2]
[349789520,1737431448681,-500.0,0.00019665,2]
[349789521,1737431448691,-500.0,0.00019665,2]
[349789522,1737431448700,-500.0,0.00019665,2]
[349789523,1737431448710,-500.0,0.00019665,2]
[349789524,1737431448719,-500.0,0.00019665,2]
[349789525,1737431448729,-500.0,0.00019665,2]
[349789526,1737431448739,-500.0,0.00019665,2]
[349789527,1737431448748,-500.0,0.00019665,2]
[349789528,1737431448757,-500.0,0.00019665,2]
[349789529,1737431448766,-623.46,0.00019665,2]
[349789530,1737431448776,-511.79261835,0.00019665,2]
[349789531,1737431448785,-500.0,0.00019665,2]
[349789532,1737431448795,-570.93,0.00019665,2]
[349789533,1737431448804,-586.4,0.00019665,2]
[349789534,1737431448813,-500.0,0.00019665,2]
[349789535,1737431448823,-540.07,0.00019665,2]
[349789536,1737431448832,-500.0,0.00019665,2]
[349789537,1737431448841,-500.0,0.00019665,2]
[349789538,1737431448850,-500.0,0.00019665,2]
[349789539,1737431448859,-500.0,0.00019665,2]
[349789540,1737431448868,-500.0,0.00019665,2]
[349789541,1737431448878,-572.74,0.00019665,2]
[349789542,1737431448887,-500.0,0.00019665,2]
[349789543,1737431448896,-741.83,0.00019665,2]
[349789544,1737431448905,-728.53,0.00019665,2]
[349789545,1737431448915,-728.53,0.00019665,2]
[349789546,1737431448924,-500.0,0.00019665,2]
[349789547,1737431448935,-535.34,0.00019665,2]
[349789548,1737431448944,-500.0,0.00019665,2]
[349789549,1737431448954,-509.73201618,0.00019665,2]
[349789550,1737431448963,-500.0,0.00019665,2]
[349789551,1737431448973,-835.45,0.00019665,2]
[349789552,1737431448982,-500.0,0.00019665,2]
[349789553,1737431448991,-500.0,0.00019665,2]
[349789554,1737431449001,-500.0,0.00019665,2]
[349789555,1737431449010,-503.48,0.00019665,2]
[349789556,1737431449019,-2737.18,0.00019665,2]
[349789557,1737431449028,-500.0,0.00019665,2]
[349789558,1737431449037,-500.0,0.00019665,2]
[349789559,1737431449047,-500.0,0.00019665,2]
[349789560,1737431449058,-500.0,0.00019665,2]
[349789561,1737431449067,-500.0,0.00019665,2]
[349789562,1737431449076,-500.0,0.00019665,2]
[349789563,1737431449085,-500.0,0.00019665,2]
[349789564,1737431449094,-500.0,0.00019665,2]
[349789565,1737431449103,-500.0,0.00019665,2]
[349789566,1737431449112,-3365.89,0.00019665,2]
[349789567,1737431449121,-500.0,0.00019665,2]
[349789568,1737431449131,-500.0,0.00019665,2]
[349789569,1737431449140,-500.0,0.00019665,2]
[349789570,1737431449150,-500.0,0.00019665,2]
[349789571,1737431449159,-500.0,0.00019665,2]
[349789572,1737431449169,-500.0,0.00019665,2]
[349789573,1737431449179,-500.0,0.00019665,2]
[349789574,1737431449188,-500.0,0.00019665,2]
[349789575,1737431449198,-500.0,0.00019665,2]
[349789576,1737431449208,-500.0,0.00019665,2]
[349789577,1737431449218,-500.0,0.00019665,2]
[349789578,1737431449227,-500.0,0.00019665,2]
[349789579,1737431449236,-500.0,0.00019665,2]
[349789580,1737431449246,-500.0,0.00019665,2]
[349789581,1737431449255,-1871.28,0.00019665,2]
[349789582,1737431449264,-500.0,0.00019665,2]
[349789583,1737431449273,-500.0,0.00019665,2]
[349789584,1737431449283,-500.0,0.00019665,2]
[349789585,1737431449292,-500.0,0.00019665,2]
[349789586,1737431449302,-500.0,0.00019665,2]
[349789587,1737431449311,-500.0,0.00019665,2]
[349789588,1737431449321,-500.0,0.00019665,2]
[349789589,1737431449330,-1519.97,0.00019665,2]
[349789590,1737431449339,-500.0,0.00019665,2]
[349789591,1737431449349,-21948.61484313,0.00019705,2]
[349789592,1737431449358,-15097.33547228,0.00019705,2]
[349789593,1737431449368,-554.98,0.00019725,2]
[349789594,1737431449379,-501.70351307,0.00019725,2]
[349789595,1737431449391,-500.0,0.00019725,2]
[349789596,1737431449401,-500.0,0.00019725,2]
[349789597,1737431449411,-692.94,0.00019725,2]
[349789598,1737431449421,-500.0,0.00019725,2]
[349789599,1737431449430,-548.14,0.00019725,2]
[349789600,1737431449440,-1043.76,0.00019725,2]
[349789601,1737431449449,-500.0,0.00019725,2]
[349789602,1737431449459,-748.19,0.00019725,2]
[349789603,1737431449469,-687.73,0.00019725,2]
[349789604,1737431449478,-1914.62,0.00019725,2]
[349789605,1737431449488,-3718.34,0.00019725,2]
[349789606,1737431449497,-616.88,0.00019725,2]
[349789607,1737431449506,-629.86,0.00019725,2]
[349789608,1737431449515,-2023.46,0.00019725,2]
[349789609,1737431449525,-500.0,0.00019725,2]
[349789610,1737431449534,-636.37,0.00019725,2]
[349789611,1737431449543,-999.61,0.00019725,2]
[349789612,1737431449553,-1261.99,0.00019725,2]
[349789613,1737431449563,-500.0,0.00019725,2]
[349789614,1737431449573,-1000.0,0.00019725,2]
[349789615,1737431449582,-1196.36,0.00019725,2]
[349789616,1737431449591,-549.65,0.00019725,2]
[349789617,1737431449600,-1575.05,0.00019725,2]
[349789618,1737431449609,-500.0,0.00019725,2]
[349789619,1737431449618,-500.0,0.00019726,2]
[349789620,1737431449627,-516.34309321,0.00019726,2]
[349789621,1737431449637,-513.21653149,0.00019726,2]
[349789622,1737431449647,-500.0,0.00019726,2]
[349789623,1737431449656,-500.0,0.00019726,2]
[349789624,1737431449665,-500.0,0.00019726,2]
[349789625,1737431449675,-500.0,0.00019726,2]
[349789626,1737431449684,-500.79720901,0.00019726,2]
[349789627,1737431449694,-500.0,0.00019726,2]
[349789628,1737431449704,-500.0,0.00019726,2]
[349789629,1737431449713,-534.83974492,0.00019726,2]
[349789630,1737431449723,-500.0,0.00019726,2]
[349789631,1737431449732,-502.38769835,0.00019726,2]
[349789632,1737431449853,-500.0,0.00019726,2]
[349789633,1737431449863,-500.0,0.00019726,2]
[349789634,1737431449872,-500.0,0.00019726,2]
[349789635,1737431449882,-500.0,0.00019726,2]
[349789636,1737431449891,-500.0,0.00019726,2]
[349789637,1737431449900,-500.0,0.00019726,2]
[349789638,1737431449910,-2605.56,0.00019726,2]
[349789639,1737431449919,-507.06,0.00019726,2]
[349789640,1737431449929,-500.0,0.00019726,2]
[349789641,1737431449939,-500.0,0.00019726,2]
[349789642,1737431449949,-500.0,0.00019726,2]
[349789643,1737431449958,-508.48703462,0.00019726,2]
[349789644,1737431449967,-500.0,0.00019726,2]